Cogmind - Beta 15 @@@ ROGUE MODE // 2025.08.07 @ 17:55:00 Player: Endlessblaze Result: Destroyed by HX-K8N(R) with Subdweller Beam Cannon Performance ------------- Evolutions (0) 0 Regions Visited (2) 400 Robots Destroyed (19) 95 Value Destroyed (312) 312 Prototype IDs (0) 0 Alien Tech Used (0) 0 Bonus (0) 0 TOTAL SCORE: 807 Bonus ------- None Cogmind --------- Core Integrity 0/250 Matter 300/300 Energy 100/100 System Corruption 0% Temperature Cool (9) Movement Core (50) Location -10/Subcaves Parts ------- > --- POWER (1) -------- (None) > --- PROPULSION (2) --- (None) > --- UTILITY (2) ------ (None) > --- WEAPON (2) ------- Mining Claw > --- INVENTORY (5) ---- Improved Terrain Scanner Medium Laser Mining Laser Hammer Peak State ------------ > --- POWER ------------ (None) > --- PROPULSION ------- Aluminum Leg Aluminum Leg > --- UTILITY ---------- Improved Terrain Scanner Improved Terrain Scanner > --- WEAPON ----------- Medium Laser Small Laser > --- INVENTORY -------- (None) [Rating: 10] Favorites ----------- Power Light Ion Engine Engine Light Ion Engine Propulsion Aluminum Leg Leg Aluminum Leg Utility Improved Terrain Scanner Device Improved Terrain Scanner Storage Medium Matter Pod Weapon Hammer Energy Gun Medium Laser Launcher Grenade Launcher Impact Weapon Hammer Slashing Weapon Mining Claw Build | -11 -10 -10 ------- Run | Yrd Mat Sub Slots Evolved . | . . . Power . | . . . Propulsion . | . . . Utility . | . . . Weapon . | . . . Parts Attached 14 | 8 4 2 Power 2 | 1 1 . Engine 2 | 1 1 . Core . | . . . Reactor . | . . . Propulsion 3 | 2 1 . Treads . | . . . Leg 3 | 2 1 . Wheel . | . . . Hover . | . . . Flight . | . . . Utility 4 | 3 . 1 Device 3 | 3 . . Storage 1 | . . 1 Processor . | . . . Hackware . | . . . Protection . | . . . Artifact . | . . . Weapon 5 | 2 2 1 Energy Gun 2 | 2 . . Energy Cannon . | . . . Ballistic Gun . | . . . Ballistic Cannon . | . . . Launcher 1 | . 1 . Special Weapon . | . . . Impact Weapon 1 | . 1 . Slashing Weapon 1 | . . 1 Piercing Weapon . | . . . Special Melee Weapon . | . . . Unidentified Prototypes . | . . . Parts Lost 6 | . 1 5 Power 2 | . . 2 Propulsion 2 | . . 2 Utility 1 | . 1 . Weapon 1 | . . 1 Highest Loss Streak 5 | . 1 5 To Critical Strikes . | . . . Average Backups 4 | 1 4 4 Power . | . 1 . Propulsion . | . . . Utility . | . 1 1 Weapon 2 | . 2 3 Tool/Special . | . . . Unused Backups 2 | . 1 1 Power . | . . . Propulsion . | . . . Utility . | . . . Weapon 2 | . 1 1 Tool/Special . | . . . Average Slot Usage (%) 88 | . 93 79 Engine 13 | . 14 11 Leg 27 | . 27 25 Device 19 | . 22 13 Energy Gun 6 | . 8 . Launcher 8 | . 6 12 Impact Weapon 8 | . 12 . Slashing Weapon 4 | . . 14 Peak Build Rating 10 | 10 9 8 Average Rating 7 | 6 8 7 On Entrance 5 | . 9 8 Naked Turns . | . . . Heaviest Build 10 | 8 10 9 Greatest Support 20 | 20 20 20 Greatest Overweight (x) 2 | 2 . 1 Average Overweight (x) . | . . . Largest Inventory Capacity 5 | 5 5 5 Average Capacity 5 | 5 5 5 Most Carried 5 | 3 5 5 Average Carried 4 | . 4 4 Final Capacity 5 | 5 5 5 Final Carried 5 | 3 5 4 Class Distribution -------------------- 100% | Mutant Dominant Class ---------------- Mutant | -10/Materials Mutant | -10/Subcaves Resources | -11 -10 -10 ----------- Run | Yrd Mat Sub Matter Collected 454 | 302 68 84 Remotely . | . . . Salvage Created 472 | 234 129 109 Parts 37 | 21 7 9 Haulers Intercepted . | . . . Recyclers Shooed . | . . . Parts Field Recycled . | . . . Retrieved Matter . | . . . Parts Self-Destructed 3 | . . 3 Prevented . | . . . Kills | -11 -10 -10 ------- Run | Yrd Mat Sub Combat Hostiles Destroyed 9 | . 6 3 Melee 1 | . . 1 Guns 3 | . 3 . AOE 5 | . 3 2 Classes Destroyed 7 | 3 3 1 Worker 3 | 2 1 . Tunneler 5 | 5 . . Recycler 1 | 1 . . Operator 1 | . 1 . Swarmer 3 | . 3 . Grunt 3 | . 3 . Subdweller 3 | . . 3 Best Kill Streak 4 | 4 4 2 Combat Bots Only 3 | . 3 2 Max Kills in Single Turn 3 | 1 3 2 Gunslinging . | . . . Exploded 3 | . 3 2 Melee 1 | . . 1 Uniques/NPCs Destroyed . | . . . Combat | -11 -10 -10 -------- Run | Yrd Mat Sub Hostile Shots Fired 60 | . 33 27 Missed 14 | . 10 4 Hits 46 | . 23 23 Projectile 46 | . 23 23 Damage Taken 786 | . 231 555 Core 262 | . 35 227 Absorbed by Shields . | . . . Regen/Repaired (Parts) 149 | . 149 . Core Remaining (%) 100 | 100 . . Volleys Fired 32 | 14 16 2 Largest 2 | 2 1 1 Hottest 90 | 90 50 30 Shots Fired 45 | 27 16 2 Gun 36 | 27 9 . Cannon . | . . . Launcher 9 | . 7 2 Special . | . . . Kinetic . | . . . Thermal 36 | 27 9 . Explosive 9 | . 7 2 Electromagnetic . | . . . Robot Hit Streak 7 | 7 7 . Robot Miss Streak 3 | 3 3 . Penetration Max . | . . . Secondary Targets . | . . . Shots Hit Robots 37 | 17 8 12 Core Hits 27 | 9 12 6 Critical Kills . | . . . Critical Parts Destroyed . | . . . Critical Strikes 2 | 2 . . Burn 2 | 2 . . Melee Attacks 20 | . 5 15 Impact 5 | . 5 . Slashing 15 | . . 15 Piercing . | . . . Sneak Attacks . | . . . Combat Hostiles . | . . . Follow-up Attacks . | . . . Damage Inflicted 1023 | 202 361 460 Guns 278 | 202 76 . Cannons . | . . . Explosions 463 | . 267 196 Melee 282 | . 18 264 Ramming . | . . . Kinetic . | . . . Thermal 278 | 202 76 . Explosive 463 | . 267 196 Electromagnetic . | . . . Impact 18 | . 18 . Slashing 264 | . . 264 Piercing . | . . . Highest Corruption . | . . . Average Corruption . | . . . Corruption Purged . | . . . Corruption Blocked . | . . . Overload Shots . | . . . Overflow Damage . | . . . Projectiles . | . . . Explosions . | . . . Melee . | . . . Knockbacks 1 | . 1 . Impact 1 | . 1 . Kinetic . | . . . Secondary . | . . . Self-Inflicted Damage 21 | . 21 . Shots 1 | . 1 . Rammed . | . . . Targets Rammed . | . . . Kicked . | . . . Crushed . | . . . Highest Temperature 90 | 75 90 . Average Temperature 32 | 25 46 . Received Heat Transfer 159 | . 36 123 Siege Activations . | . . . Martial Activations . | . . . Shielding Activations . | . . . Robots Disrupted . | . . . Combat Hostiles . | . . . Robots Corrupted . | . . . Combat Hostiles . | . . . Parts Fried . | . . . Impact Corruptions . | . . . Robots Melted . | . . . Combat Hostiles . | . . . Parts Melted 2 | 1 1 . Heat Transferred 903 | 681 222 . Parts Sabotaged . | . . . Parts Stolen . | . . . Parts Stripped . | . . . Power Chain Reactions . | . . . Alert | -11 -10 -10 ------- Run | Yrd Mat Sub Maximum Alert Level . | . . . Low Security (%) 100 | 100 100 . Level 1 . | . . . Level 2 . | . . . Level 3 . | . . . Level 4 . | . . . Level 5 . | . . . High Security . | . . . Max Security . | . . . Peak Influence 124 | 10 124 . Initial . | . . . Average 38 | 1 50 . Influence Increases 293 | 40 253 . Destroy 0b10 Robot/C 120 | . 120 . Destroy 0b10 Robot/NC 50 | 40 10 . Destroy Leader 20 | . 20 . Successful Hack 55 | . 55 . Destroy Structure 48 | . 48 . Influence Decreases 293 | 40 196 57 Entered New Map 28 | . . 28 Time Decay 255 | 40 186 29 Lost Part 10 | . 10 . Squads Dispatched 1 | . 1 . Investigation 1 | . 1 . Extermination . | . . . Reinforcement . | . . . Assault . | . . . Garrison . | . . . Intercept . | . . . Searches Triggered . | . . . Construction Impeded . | . . . Haulers Reinforced . | . . . Active Scanning Responses . | . . . Cargo Convoy Interrupts . | . . . Stealth | -11 -10 -10 --------- Run | Yrd Mat Sub Distress Signals . | . . . Communications Jammed . | . . . Distress Signals . | . . . Times Spotted 13 | . 9 4 Peak Tracking Total 3 | . 3 2 Tactical Retreats . | . . . Traps | -11 -10 -10 ------- Run | Yrd Mat Sub Traps Triggered . | . . . Indirectly . | . . . Trap Hack Attempts . | . . . Triggered . | . . . Disarmed . | . . . Reprogrammed . | . . . Reused . | . . . Traps Extracted . | . . . Installed . | . . . Triggered . | . . . Machines | -11 -10 -10 ---------- Run | Yrd Mat Sub Machines Disabled . | . . . Max in Single Turn . | . . . Machines Repaired . | . . . Machines Dismantled . | . . . Machines Sabotaged . | . . . Overloaded Fab Kills . | . . . Hacking | -11 -10 -10 --------- Run | Yrd Mat Sub Machines Accessed 8 | . 8 . Terminals 5 | . 5 . Fabricators . | . . . Repair Stations 1 | . 1 . Recycling Units 2 | . 2 . Scanalyzers . | . . . Garrison Access . | . . . Total Hacks 23 | . 23 . Successful 12 | . 12 . Failed 11 | . 11 . Catastrophic 2 | . 2 . Database Lockouts . | . . . Manual 14 | . 14 . Terminals 15 | . 15 . Fabricators . | . . . Repair Stations 5 | . 5 . Recycling Units 3 | . 3 . Scanalyzers . | . . . Garrison Access . | . . . Terminal Hacks 1 | . 1 . Branch Access Points 1 | . 1 . Fabricator Hacks . | . . . Repair Station Hacks 4 | . 4 . Scan Component 2 | . 2 . Repair 2 | . 2 . Recycling Unit Hacks 3 | . 3 . Report Inventory 2 | . 2 . Retrieve Components 1 | . 1 . Scanalyzer . | . . . Garrison Access Hacks . | . . . Unauthorized Hacks 4 | . 4 . Terminals 4 | . 4 . Botnet 4 | . 4 . Fabricators . | . . . Repair Stations . | . . . Recycling Units . | . . . Scanalyzers . | . . . Garrison Access . | . . . Data Cores Recovered 1 | . 1 . Used . | . . . Hacking Detections 6 | . 6 . Full Trace Events 1 | . 1 . Feedback Events . | . . . Feedback Blocked . | . . . Robot Schematics Acquired . | . . . Robots Built . | . . . Authchips . | . . . Time . | . . . Total Robot Build Rating . | . . . Part Schematics Acquired . | . . . Parts Built . | . . . Authchips . | . . . Time . | . . . Total Part Build Rating . | . . . Parts Repaired 2 | . 2 . Time 26 | . 26 . Parts Recycled . | . . . Recycled Matter . | . . . Retrieved Matter . | . . . Retrieved Components 3 | . 3 . Parts Scanalyzed . | . . . Part Schematics Acquired . | . . . Parts Damaged . | . . . Bothacking | -11 -10 -10 ------------ Run | Yrd Mat Sub Used RIF Installer . | . . . Robots Hacked . | . . . Non-combat . | . . . Combat . | . . . Robot Hacks Applied . | . . . Relay Couplers Released . | . . . Fabnet Peak Effective % . | . . . Robots Rewired . | . . . Allies Hacked . | . . . Hacks Repelled . | . . . Allies | -11 -10 -10 -------- Run | Yrd Mat Sub Total Allies . | . . . Largest Group . | . . . Highest-Rated Group . | . . . Highest-Rated Ally . | . . . Total Orders . | . . . Ally Attacks . | . . . Total Damage . | . . . Kills . | . . . Allies Corrupted . | . . . Allies Melted . | . . . Intel | -11 -10 -10 ------- Run | Yrd Mat Sub Active Infowar (turns) 922 | 48 627 247 Terrain 922 | 48 627 247 Seismic 401 | 48 353 . Robot Analysis Total . | . . . Derelict Logs Recovered . | . . . Drone Launches . | . . . Drone Recoveries . | . . . Exploration | -11 -10 -10 ------------- Run | Yrd Mat Sub Turns Passed 1097 | 209 627 261 Spaces Moved 740 | 148 441 151 Core 77 | 74 . 3 Treads . | . . . Legs 663 | 74 441 148 Wheels . | . . . Hover . | . . . Flight . | . . . Fastest Speed 50 | 50 120 50 Average Speed 116 | 102 120 119 Slowest Speed 150 | 150 120 120 Overloaded Moves . | . . . Propulsion Burnouts . | . . . Robots Hopped . | . . . Potential Cave-ins . | . . . Cave-ins Triggered . | . . . Exploration Rate (%) 24 | 4 58 12 Regions Visited 2 Branch Regions 1 Pre-discovered Areas . | . . . Known Exits Taken . | . . . Unknown Exits Taken 2 | 1 1 . Scrap Searched . | . . . Spaces Dug . | . . . Terrain Destroyed 53 | . 48 5 Melee . | . . . Projectile . | . . . AOE 53 | . 48 5 Terrain Rammed . | . . . Walls Destroyed . | . . . Machines Disabled . | . . . Actions | -11 -10 -10 --------- Run | Yrd Mat Sub Total 889 | 175 513 201 Wait 70 | 2 40 28 Move 738 | 147 440 151 Hop . | . . . Pick Up 6 | 3 3 . Fast Attach 11 | 8 3 . Attach 2 | . . 2 Detach 1 | . . 1 Swap 4 | . 3 1 Drop 5 | 1 3 1 Fire 32 | 14 16 2 Melee 20 | . 5 15 Ram . | . . . Kick . | . . . Crush . | . . . Escape Stasis . | . . . Rewire . | . . . Trap . | . . . Miscellaneous . | . . . Route ------- -11/Scrapyard -10/Materials (discovered 4 exits: [*Mat] / *Min x2 / [*Sub]) -10/Subcaves History --------- Turn | Location | Event 4 | -11/Scrapyard | Discovered new exit (range 16) 210 | -11/Scrapyard | Entered Materials 312 | -10/Materials | Build established: Mutant 332 | -10/Materials | Discovered new exit (range 6) 435 | -10/Materials | Identified exit to Mines 537 | -10/Materials | Discovered new exit (range 15) 589 | -10/Materials | Repaired Hammer 603 | -10/Materials | Repaired Aluminum Leg 837 | -10/Materials | Entered Subcaves 838 | -10/Subcaves | Approached by a straggling Scientist 1075 | -10/Subcaves | Core integrity fell below 50% 1092 | -10/Subcaves | Core integrity fell below 20% 1098 | -10/Subcaves | Destroyed by HX-K8N(R) with Subdweller Beam Cannon Last Messages --------------- Subatomizers dissect the Disposable Heat Sink. Acquired 42 matter. UH-DAM(c): "I think it's somewhere northwest of here" The unstable cave ceiling collapses. UH-DAM(c): "I think it's somewhere northwest of here" Acquired 11 matter. UH-DAM(c): "I think it's somewhere west of here" UH-DAM(c): "I think it's somewhere northwest of here" Lgt. Ion Engine destroyed. U9-ZZQ(R) destroyed. Aluminum Leg destroyed. HX-K8N(R) affixes Scrap Shield Fragment to Scrap Shield. Grenade Launcher destroyed. HX-K8N(R) affixes Scrap Shield Fragment to Scrap Shield. Aluminum Leg destroyed. Dropped Med. Matter Pod. Lgt. Ion Engine destroyed. UH-DAM(c): "I think it's somewhere northwest of here" Map ----- +----------------------------------------------------+ | ?????????????????????????????????????????????????? | | ?????????????????????????????????????????????????? | | ?????????????????????????????????????????????????? | | ?????????????????????????????????????????????????? | | ?????????????????????????????????????????????????? | | ?????????????????????????????????????????????????? | | ?????????????????????????????????????????????????? | | ?????????????????????????????????????????????????? | | ??????????????????????????????????????? ?????????? | | ?????????????????????????????????????????????????? | | ?????????????????????????????????????????????????? | | ????????????????????????????????#????????????????? | | ???????????????????????????????#??????? ?????????? | | ????????????????????????????????????????????????? | | ???????????????????????????????#???????????##???? | | ???????????????????????????? ???#???????????????? | | ????????????????????????????????????????######??# | | ??????????????????????????????"???? ????## ### | | ????????????????????#?## ""??"??????#??## | | ??????????????????????# """???# ? ???## | | ??????????????????????# "" ??#"" ??### | | ??????????????????????# ###""" ?## ## | | ??????????????????????# ""# """ ?# # | | ???????????????????????# """ " " ??# | | ?????????????#?????????# " """"#????## ## | | ???????????????????????#R@ =%###???### #### | | ???????????????????????#" *!!#?#?????### #?## | | ???????????????????????# &##???######## ### | | ???????????????????????## c ##??#" ### ## | | ????????????????????????# ####?# | | ?????????????????##????#;# ## ### | | ???????????????????#???#### ### | | ??????????????????????#???## ### #?# | | ??????????????????????#????# #?#### ### | | ???????????????????????????# #?????### | | ??????????????????????????## #?##### | | ??????????????????????????# ### ##### | | ?????????????????????????# ##?# #### | | ????????????????????????# """#?## ### | | ??????????????????????? ""##?# ###?# ## | | ????????????????????? ""#?## ?#### ### | | ?????????????????????# ### ### ##"## ##?## | | ?????????????????????##??# ##" " # #??# | | ????????????????????????? ?##" " "& ##### | | ???????????????????????? ?#"" ""& &! ## # | | ??????????????????????? ?#"" "[& | | ????????????????????????## ??##" | | ??????????????????????????? ????## # | | ?????????????????????????????????## ### # | | ??????????????????????????????????########### # | +----------------------------------------------------+ Best States ------------- Heat Dissipation 25 Energy Generation 10 Energy Capacity 125 Matter Stores 300 Matter Capacity 300 Sight Range 16 Terrain Scan Range 16 Terrain Scan Density 10 Evasion (%) 55 Item Schematics ----------------- None Robot Schematics ------------------ None Fabricated ------------ Nothing Repaired ---------- Hammer | 7% | -10/Materials Aluminum Leg | 37% | -10/Materials Alien Tech Used ----------------- None Achievements -------------- None Challenges ------------ None Game ------ Seed ConstructHeartPlating Manual? 0 Play Time 00:14:13 Cumulative 16.0 hours Start 2025.08.07 @ 17:42:44 End 2025.08.07 @ 17:55:00 Sessions 1 Manual Loads 0 Difficulty Rogue Special Mode None Game No. 21 Rogue 21 Adventurer 0 Explorer 0 Win Type - Total 0 Types 0/0/0/0/0/0/0/0/0/0 Lore% 19 Gallery% 19 Achievement% 21 Wizard Run 0 Options --------- Layout 1 ASCII 0 Keyboard 0 Movement Arrows Keybinds 0 Fullscreen 1 Font 16/SmallcapsGlow Map View 55x38 Zoom Use 0% Tactical HUD 0 Map Filters NONE Filters NONE Steam 1 RUN: 4a27706b-335d-4daa-af06-f69f90230ed9